fUSD/lending_fUSD_20241105
["ID","MTS","AMOUNT","RATE_DAILY","PERIOD"]
[341360971,1730833847945,-150.0,0.000236,2]
[341360972,1730833847954,-300.0,0.00023605,2]
[341360973,1730833847963,-150.0,0.00023608,2]
[341360974,1730833847972,-500.0,0.00023609,2]
[341360975,1730833847982,-150.0,0.00023614,2]
[341360976,1730833848080,-150.0,0.00023619,2]
[341360977,1730833848102,-150.0,0.00023624,2]
[341360978,1730833848112,-150.0,0.0002363,2]
[341360979,1730833848122,-150.0,0.0002363,2]
[341360980,1730833848131,-150.0,0.00023631,2]
[341360981,1730833848141,-150.0,0.00023633,2]
[341360982,1730833848150,-150.0,0.00023635,2]
[341360983,1730833848160,-150.0,0.00023636,2]
[341360984,1730833848169,-150.0,0.00023639,2]
[341360985,1730833848178,-150.0,0.00023641,2]
[341360986,1730833848188,-1500.0,0.00023641,2]
[341360987,1730833848197,-150.0,0.00023643,2]
[341360988,1730833848206,-150.0,0.00023643,2]
[341360989,1730833848215,-150.0,0.00023647,2]
[341360990,1730833848225,-150.0,0.00023648,2]
[341360991,1730833848235,-150.0,0.00023651,2]
[341360992,1730833848244,-1500.0,0.00023651,2]
[341360993,1730833848253,-150.0,0.0002366,2]
[341360994,1730833848263,-150.0,0.0002366,2]
[341360995,1730833848275,-150.0,0.00023661,2]
[341360996,1730833848285,-150.0,0.0002367,2]
[341360997,1730833848294,-178.36,0.00023719,2]
[341360998,1730833848303,-167.01,0.00023732,2]
[341360999,1730833848313,-166.99,0.00023732,2]
[341361000,1730833848322,-167.22,0.00023732,2]
[341361001,1730833848332,-166.35,0.00023732,2]
[341361002,1730833848341,-397.20110479,0.0002376,2]
[341361003,1730833848351,-394.72655386,0.00023922,2]
[341361004,1730833848360,-157.30059208,0.00024052,2]
[341361005,1730833848370,-695.63,0.00024555,2]
[341361006,1730833848379,-621.22676036,0.00024558,2]
[341361007,1730833848389,-1500.0,0.00024658,2]
[341361008,1730833848398,-1000.0,0.00024658,2]
[341361009,1730833848409,-1998.0,0.000247,2]
[341361010,1730833848419,-364.49,0.00024877,30]
[341361011,1730833848428,-1600.0,0.000249,9]
[341361012,1730833848438,-216.48218438,0.000249,2]
[341361013,1730833848448,-1000.0,0.00025,2]
[341361014,1730833848457,-1662.42922742,0.00025,2]
[341361015,1730833848467,-63405.7931106,0.00025,5]
[341361016,1730833848476,-350.0,0.00025,2]
[341361017,1730833848486,-151.0,0.00025,7]
[341361018,1730833848495,-151.0,0.00025,7]
[341361019,1730833848505,-152.169432,0.00025,7]
[341361020,1730833848514,-151.0,0.00025,7]
[341361021,1730833848523,-152.241666,0.00025,7]
[341361022,1730833848533,-151.0,0.00025,7]
[341361023,1730833848542,-151.0,0.00025,7]
[341361024,1730833848552,-151.0,0.00025,7]
[341361025,1730833848562,-230.959934,0.00025,7]
[341361026,1730833848571,-151.0,0.00025,7]
[341361027,1730833848580,-151.0,0.00025,7]
[341361028,1730833848589,-257.248346,0.00025,7]
[341361029,1730833848598,-152.818569,0.00025,7]
[341361030,1730833848607,-151.0,0.00025,7]
[341361031,1730833848616,-151.583375,0.00025,7]
[341361032,1730833848626,-151.0,0.00025,7]
[341361033,1730833848635,-156.427167,0.00025,7]
[341361034,1730833848644,-151.0,0.00025,7]
[341361035,1730833848654,-151.0,0.00025,7]
[341361036,1730833848663,-151.0,0.00025,7]
[341361037,1730833848672,-151.0,0.00025,7]
[341361038,1730833848682,-151.0,0.00025,7]
[341361039,1730833848691,-151.0,0.00025,7]
[341361040,1730833848700,-151.0,0.00025,7]
[341361041,1730833848709,-173.440098,0.00025,7]
[341361042,1730833848719,-151.0,0.00025,7]
[341361043,1730833848729,-151.0,0.00025,7]
[341361044,1730833848738,-173.440098,0.00025,7]
[341361045,1730833848747,-234.079648,0.00025,7]
[341361046,1730833848757,-214.698454,0.00025,7]
[341361047,1730833848766,-214.698454,0.00025,7]
[341361048,1730833848775,-151.0,0.00025,7]
[341361049,1730833848784,-151.0,0.00025,7]
[341361050,1730833848793,-176.378083,0.00025,7]
[341361051,1730833848803,-151.0,0.00025,7]
[341361052,1730833848812,-155.311157,0.00025,7]
[341361053,1730833848821,-151.0,0.00025,7]
[341361054,1730833848831,-274.622842,0.00025,7]
[341361055,1730833848840,-151.0,0.00025,7]
[341361056,1730833848850,-151.0,0.00025,7]
[341361057,1730833848859,-362.518436,0.00025,7]
[341361058,1730833848868,-362.518436,0.00025,7]
[341361059,1730833848878,-151.0,0.00025,7]
[341361060,1730833848887,-151.0,0.00025,7]
[341361061,1730833848896,-151.0,0.00025,7]
[341361062,1730833848908,-151.0,0.00025,7]
[341361063,1730833848921,-267.411356,0.00025,7]
[341361064,1730833848930,-155.59233,0.00025,7]
[341361065,1730833848939,-151.0,0.00025,7]
[341361066,1730833848949,-151.0,0.00025,7]
[341361067,1730833848958,-151.0,0.00025,7]
[341361068,1730833848967,-151.0,0.00025,7]
[341361069,1730833848977,-151.0,0.00025,7]
[341361070,1730833848987,-151.0,0.00025,7]
[341361071,1730833848996,-157.949,0.0002588,2]
[341361072,1730833849006,-1000.0,0.00026,2]
[341361073,1730833849015,-8019.95196644,0.00026058,2]
[341361074,1730833849025,-695.63,0.00026819,2]
[341361075,1730833849034,-1000.0,0.00027,2]
[341361076,1730833849044,-400.0,0.00027,2]
[341361077,1730833849054,-1000.0,0.00027,2]
[341361078,1730833849064,-151.0,0.00027397,7]
[341361079,1730833849073,-151.0,0.00027397,7]
[341361080,1730833849083,-151.0,0.00027397,7]
[341361081,1730833849092,-151.0,0.00027397,7]
[341361082,1730833849101,-200.0,0.00027397,7]
[341361083,1730833849111,-151.0,0.00027397,7]
[341361084,1730833849120,-151.0,0.00027397,7]
[341361085,1730833849130,-151.0,0.00027397,7]
[341361086,1730833849139,-155.622715,0.00027397,7]
[341361087,1730833849148,-3000.0,0.00027397,2]
[341361088,1730833849159,-3000.0,0.00027397,2]
[341361089,1730833849168,-3000.0,0.00027397,2]
[341361090,1730833849177,-3000.0,0.00027397,2]
[341361091,1730833849186,-3000.0,0.00027397,2]
[341361092,1730833849196,-3000.0,0.00027397,2]
[341361093,1730833849205,-3000.0,0.00027397,2]
[341361094,1730833849214,-3000.0,0.00027397,2]
[341361095,1730833849223,-3000.0,0.00027397,2]
[341361096,1730833849232,-3000.0,0.00027397,2]
[341361097,1730833849241,-3000.0,0.00027397,2]
[341361098,1730833849250,-3000.0,0.00027397,2]
[341361099,1730833849259,-3000.0,0.00027397,2]
[341361100,1730833849273,-3000.0,0.00027397,2]
[341361101,1730833849282,-3000.0,0.00027397,2]
[341361102,1730833849291,-151.0,0.00027397,7]
[341361103,1730833849300,-164.78,0.00027397,10]
[341361104,1730833849310,-200.0,0.000274,2]
[341361105,1730833849319,-364.49,0.00027461,30]
[341361106,1730833849328,-150.0,0.00027973,2]
[341361107,1730833849337,-5914.0,0.00027973,2]
[341361108,1730833849349,-6199.84667606,0.00027973,2]
[341361109,1730833849365,-7406.15332394,0.00027973,2]
[341361110,1730833849374,-1110.628,0.00027973,2]
[341361111,1730833849383,-1089.0,0.00027973,2]
[341361112,1730833849393,-151.0,0.00027973,7]
[341361113,1730833849404,-151.0,0.00027973,7]
[341361114,1730833849413,-151.0,0.00027973,7]
[341361115,1730833849423,-151.0,0.00027973,7]
[341361116,1730833849432,-362.518436,0.00027973,7]
[341361117,1730833849441,-362.518436,0.00027973,7]
[341361118,1730833849450,-1000.0,0.00028,2]
[341361119,1730833849459,-1869.0,0.000282,2]
[341361120,1730833849469,-157.30059208,0.00028222,2]
[341361121,1730833849478,-17997.42649608,0.00028735,2]
[341361122,1730833849487,-151.0,0.00028735,7]
[341361123,1730833849496,-151.0,0.00028735,7]
[341361124,1730833849505,-154.988057,0.00028735,7]
[341361125,1730833849515,-151.0,0.00028735,7]
[341361126,1730833849524,-151.0,0.00028735,7]
[341361127,1730833849533,-151.0,0.00028735,7]
[341361128,1730833849644,-151.0,0.00028735,7]
[341361129,1730833849654,-151.0,0.00028735,7]
[341361130,1730833849663,-151.0,0.00028735,7]
[341361131,1730833849672,-151.0,0.00028735,7]
[341361132,1730833849681,-151.0,0.00028735,7]
[341361133,1730833849691,-151.0,0.00028735,7]
[341361134,1730833849700,-158.167271,0.00028735,7]
[341361135,1730833849709,-514.0,0.00028783,7]
[341361136,1730833849718,-151.0,0.00028858,7]
[341361137,1730833849728,-151.0,0.00028858,7]
[341361138,1730833849737,-151.0,0.00028858,7]
[341361139,1730833849746,-151.0,0.00028858,7]
[341361140,1730833849755,-151.0,0.00028858,7]
[341361141,1730833849765,-157.58,0.00028858,2]
[341361142,1730833849774,-1516.572727,0.000289,2]
[341361143,1730833849784,-1000.0,0.00029,2]
[341361144,1730833849793,-7247.02509946,0.00029,2]
[341361145,1730833849802,-11763.01790461,0.00029,2]
[341361146,1730833849812,-450.0,0.00029,2]
[341361147,1730833849823,-151.0,0.00029,7]
[341361148,1730833849833,-151.0,0.00029,7]
[341361149,1730833849843,-151.0,0.00029,7]
[341361150,1730833849852,-2644.0,0.00029,2]
[341361151,1730833849861,-151.0,0.00029,7]
[341361152,1730833849870,-173.440098,0.00029,7]
[341361153,1730833849879,-151.0,0.00029,7]
[341361154,1730833849888,-173.440098,0.00029,7]
[341361155,1730833849897,-214.698454,0.00029,7]
[341361156,1730833849907,-214.698454,0.00029,7]
[341361157,1730833849916,-695.63,0.00029083,2]
[341361158,1730833849925,-446.0,0.000291,2]
[341361159,1730833849935,-274.38795648,0.000291,2]
[341361160,1730833849944,-151.0,0.000291,7]
[341361161,1730833849953,-150.0,0.00029149,2]
[341361162,1730833849963,-151.861,0.00029149,2]
[341361163,1730833849972,-155.0,0.00029149,2]
[341361164,1730833849981,-150.265,0.00029149,2]
[341361165,1730833849990,-150.0,0.00029149,2]
[341361166,1730833849999,-250.0,0.00029149,2]
[341361167,1730833850008,-248.7,0.00029149,2]
[341361168,1730833850018,-203.038,0.00029149,2]
[341361169,1730833850029,-1987.0,0.00029149,2]
[341361170,1730833850039,-750.19,0.00029149,2]
[341361171,1730833850049,-2906.0,0.00029149,2]
[341361172,1730833850058,-270.30957544,0.00029149,2]
[341361174,1730834140537,482.93,0.00012517,2]
[341361175,1730834145201,150.0,7.192e-05,2]
[341361176,1730834145224,38.466,7.192e-05,2]
[341361181,1730834402971,150.0,7.192e-05,2]
[341361182,1730834402994,87.88570291,7.192e-05,2]
[341361184,1730834720033,310.8681609,9e-05,2]
[341361185,1730834730068,599.05684113,0.000101,2]
[341361193,1730834830366,1500.0,0.000157,5]
[341361194,1730834832483,3100.0,0.000158,5]
[341361195,1730834834662,4700.0,0.000159,5]
[341361210,1730834882498,97031.43320602,0.000145,3]
[341361211,1730834882521,95900.30720912,0.000145,3]
[341361212,1730834891726,4659.82005371,0.00013,4]
[341361213,1730834926744,150.55163878,0.00013,2]
[341361214,1730834927767,134.96315607,0.000107,2]
[341361215,1730834927802,120.0052931,0.000107,2]
[341361249,1730835031951,-1816.177595,0.0001439,2]
[341361251,1730835031961,-711.53265105,0.00014435,2]
[341361253,1730835031972,-288.46734895,0.00014435,2]
[341361254,1730835031981,-155.94,0.00015342,2]
[341361255,1730835031990,-154.01,0.00015342,2]
[341361257,1730835032000,-1291.04216193,0.000156,2]
[341361259,1730835032009,-300.0,0.00015698,2]
[341361261,1730835032019,-1154.50146756,0.00015699,2]
[341361263,1730835032031,-5570.51713718,0.00015699,2]
[341361265,1730835032043,-1000.0,0.000157,2]
[341361267,1730835032052,-2035.71981817,0.000157,2]
[341361269,1730835032064,-442.36816105,0.000157,2]
[341361272,1730835032083,-328.4348001,0.000157,2]
[341361275,1730835032094,-367.8,0.000157,2]
[341361277,1730835032107,-350.425,0.000157,2]
[341361279,1730835032119,-976.68107312,0.000157,2]
[341361304,1730835038050,-842.21602869,0.000157,2]
[341361305,1730835038435,-76543.98561887,0.000157,2]
[341361306,1730835038445,-1291.04216192,0.000159,2]
[341361307,1730835038454,-334.97182128,0.0001599,2]
[341361308,1730835038463,-334.97182128,0.0001599,2]
[341361309,1730835038472,-500.0,0.00015999,2]
[341361310,1730835038482,-239.75703893,0.00015999,2]
[341361311,1730835038491,-1871942.75961206,0.00016,2]
[341361312,1730835038500,-216.48218438,0.00016039,2]
[341361313,1730835038509,-5061.35097633,0.00016139,2]
[341361314,1730835038518,-207.01,0.00016139,2]
[341361315,1730835038528,-2907.87,0.00016139,2]
[341361316,1730835038537,-1000.0,0.00016239,2]
[341361317,1730835038546,-1282.15,0.00016239,2]
[341361318,1730835038555,-150.99,0.00016239,2]
[341361319,1730835038565,-420.0,0.00017168,2]
[341361320,1730835038574,-239.28,0.00017824,2]
[341361321,1730835038584,-6012.32890018,0.00018,2]
[341361322,1730835038593,-1127.75971318,0.00018,2]
[341361323,1730835038604,-250.0,0.00018002,2]
[341361325,1730835038613,-1000.0,0.00018043,2]
[341361327,1730835038623,-587.0,0.00018777,2]
[341361329,1730835038632,-14519.08682721,0.0001892,2]
[341361331,1730835038644,-5061.35097629,0.0001954,2]
[341361332,1730835038653,-1000.0,0.00019848,2]
[341361334,1730835038663,-2333.62706386,0.000199,3]
[341361336,1730835038672,-690.71349641,0.0002,2]
[341361338,1730835038682,-160.52,0.00020277,2]
[341361340,1730835038691,-823.0,0.00020535,2]
[341361342,1730835038701,-250.0,0.00021,2]
[341361344,1730835038710,-169.0,0.00021644,2]
[341361346,1730835038720,-1000.0,0.00021652,2]
[341361348,1730835038731,-172.52,0.00021918,2]
[341361350,1730835038740,-3490.65209917,0.00022,2]
[341361352,1730835038749,-707.0,0.00022459,2]
[341361354,1730835038759,-482.05,0.00022885,2]
[341361356,1730835038768,-5061.35097629,0.00022941,2]
[341361358,1730835038777,-154.01,0.00022945,2]
[341361360,1730835038786,-300.0,0.00023,2]
[341361362,1730835038795,-7373.16,0.00023112,2]
[341361364,1730835038805,-1052.73,0.00023688,2]
[341361366,1730835038814,-385.62,0.00023688,2]
[341361367,1730835038824,-465.72,0.00023688,2]
[341361369,1730835038834,-200.0,0.00023706,2]
[341361371,1730835038842,-250.0,0.0002383,2]
[341361373,1730835038851,-7293.58603973,0.00023922,2]
[341361375,1730835038860,-151.71,0.00023985,2]
[341361377,1730835038870,-156.8,0.00024176,2]
[341361379,1730835038879,-150.0,0.00024656,2]
[341361381,1730835038889,-701.0,0.00024658,2]
[341361383,1730835038898,-155.75,0.00024799,2]
[341361385,1730835038907,-155.75,0.00024818,2]
[341361387,1730835038916,-155.75,0.00024837,2]
[341361389,1730835038925,-155.75,0.00024856,2]
[341361390,1730835038934,-155.75,0.00024875,2]
[341361392,1730835038943,-23900.0,0.00024883,2]
[341361394,1730835038952,-155.75,0.00024894,2]
[341361396,1730835038961,-155.75,0.00024913,2]
[341361398,1730835038970,-155.75,0.00024933,2]
[341361400,1730835038979,-155.75,0.00024952,2]
[341361402,1730835038988,-239.28,0.00024953,2]
[341361404,1730835038997,-155.75,0.00024971,2]
[341361406,1730835039006,-155.75,0.0002499,2]
[341361408,1730835039017,-6759.46377346,0.00025,5]
[341361410,1730835039025,-155.75,0.00025009,2]
[341361412,1730835039034,-155.75,0.00025028,2]
[341361424,1730835039148,-5110.9,0.00025039,2]
[341361426,1730835039157,-155.75,0.00025047,2]
[341361428,1730835039166,-360.86,0.00025102,30]
[341361430,1730835039176,-1500.0,0.00025107,2]
[341361432,1730835039186,-482.05,0.00025149,2]
[341361434,1730835039195,-166.13,0.00025176,2]
[341361437,1730835039205,-347.05,0.00025425,2]
[341361438,1730835039215,-156.8,0.00026084,2]
[341361440,1730835039224,-5061.35097629,0.00026342,2]
[341361442,1730835039233,-1000.0,0.00026516,2]
[341361444,1730835039243,-800.0,0.00026986,120]
[341361446,1730835039251,-1131.0,0.00027,2]
[341361448,1730835039260,-1000.0,0.000273,2]
[341361449,1730835039270,-200.0,0.00027397,7]
[341361451,1730835039279,-200.0,0.000274,2]
[341361453,1730835039289,-482.05,0.00027413,2]
[341361455,1730835039299,-360.86,0.00027686,30]
[341361457,1730835039309,-241.10393075,0.00027921,2]
[341361459,1730835039319,-156.8,0.00027993,2]
[341361461,1730835039328,-150.0,0.000285,3]
[341361463,1730835039338,-2500.0,0.000288,2]
[341361464,1730835039347,-150.0,0.000291,2]
[341361465,1730835039356,-1500.0,0.00029124,2]
[341361466,1730835039366,-151.0,0.00029124,7]
[341361467,1730835039375,-151.0,0.00029124,7]
[341361468,1730835039384,-151.0,0.00029124,7]
[341361469,1730835039394,-500.1989936,0.00029148,2]
[341361470,1730835039403,-2000.0,0.00029149,2]
[341361471,1730835039413,-200.0,0.00029149,2]
[341361472,1730835039423,-2000.0,0.00029149,2]
[341361474,1730835039432,-200.0,0.00029149,2]
[341361476,1730835039441,-151.0,0.00029149,7]
[341361477,1730835039450,-253.762905,0.00029149,7]
[341361479,1730835039460,-151.0,0.00029149,7]
[341361481,1730835039469,-151.0,0.00029149,7]
[341361483,1730835039479,-253.762905,0.00029149,7]
[341361485,1730835039488,-151.0,0.00029149,7]
[341361487,1730835039498,-1569.2611,0.00029152,2]
[341361489,1730835039507,-15065.2111526,0.00029252,2]
[341361491,1730835039517,-151.0,0.00029252,7]
[341361493,1730835039526,-296.02513,0.00029252,7]
[341361495,1730835039536,-288.51684,0.00029252,7]
[341361497,1730835039545,-151.0,0.00029252,7]
[341361499,1730835039556,-206.03846,0.00029252,7]
[341361502,1730835039565,-48401.2231,0.0002928,2]
[341361503,1730835039575,-151.0,0.0002928,7]
[341361505,1730835039584,-151.0,0.0002928,7]
[341361507,1730835039593,-151.0,0.0002928,7]
[341361509,1730835039602,-151.0,0.0002928,7]
[341361511,1730835039611,-171.758764,0.0002928,7]
[341361513,1730835039621,-171.758764,0.0002928,7]
[341361515,1730835039631,-151.0,0.0002928,7]
[341361517,1730835039641,-253.762905,0.0002928,7]
[341361519,1730835039651,-151.0,0.0002928,7]
[341361521,1730835039660,-216.589234,0.0002928,7]
[341361523,1730835039670,-253.762905,0.0002928,7]
[341361525,1730835039679,-151.0,0.0002928,7]
[341361527,1730835039689,-183.78233,0.0002928,7]
[341361528,1730835039698,-151.0,0.0002928,7]
[341361530,1730835039707,-151.0,0.0002928,7]
[341361532,1730835039716,-5537.7097,0.00029407,2]
[341361534,1730835039726,-2000.0,0.0002944,2]
[341361536,1730835039736,-200.0,0.0002944,2]
[341361538,1730835039745,-200.0,0.0002944,2]
[341361540,1730835039754,-1999.999999,0.000295,2]
[341361542,1730835039763,-6906.0,0.00029542,30]
[341361544,1730835039773,-151.0,0.00029564,7]
[341361547,1730835039786,-2906.0,0.00029564,2]
[341361550,1730835039804,-1256.0,0.00029564,2]
[341361552,1730835039820,-809.0,0.00029564,2]
[341361555,1730835039839,-813.0,0.00029564,2]
[341361558,1730835039857,-3376.0,0.00029564,2]
[341361561,1730835039873,-500.0,0.00029564,2]
[341361563,1730835039890,-150.0,0.00029564,2]
[341361566,1730835039907,-472.298,0.00029564,2]
[341361569,1730835039920,-946.535,0.00029564,2]
[341361571,1730835039936,-482.05,0.00029676,2]
[341361574,1730835039953,-2000.0,0.00029735,2]
[341361577,1730835039973,-200.0,0.00029735,2]
[341361580,1730835039987,-200.0,0.00029735,2]
[341361583,1730835040005,-5061.35097629,0.00029743,15]
[341361585,1730835040020,-2010.0,0.00029863,2]
[341361588,1730835040038,-2286.41571681,0.000299,2]
[341361590,1730835040051,-1000.0,0.0003,2]
[341361593,1730835040068,-222.911,0.0003,2]
[341361596,1730835040082,-222.911,0.0003,2]
[341361598,1730835040100,-202.00875,0.0003,2]
[341361601,1730835040115,-202.00875,0.0003,2]
[341361603,1730835040129,-585.50116357,0.0003,2]
[341361606,1730835040144,-203.02075,0.0003,2]
[341361608,1730835040159,-203.02075,0.0003,2]
[341361611,1730835040174,-271.22975681,0.0003,2]
[341361614,1730835040189,-499.216,0.0003,2]
[341361616,1730835040206,-499.216,0.0003,2]
[341361619,1730835040221,-11806.78078114,0.0003,2]
[341361621,1730835040235,-726.14125,0.0003,2]
[341361624,1730835040251,-726.14125,0.0003,2]
[341361626,1730835040266,-327.24475,0.0003,2]
[341361629,1730835040280,-327.24475,0.0003,2]
[341361631,1730835040295,-151.0,0.0003,7]
[341361634,1730835040313,-253.762905,0.0003,7]
[341361636,1730835040329,-253.762905,0.0003,7]
[341361639,1730835040344,-151.0,0.0003,7]
[341361641,1730835040359,-182.6,0.0003,2]
[341361644,1730835040374,-182.6,0.0003,2]
[341361646,1730835040390,-182.6,0.0003,2]
[341361649,1730835040406,-182.6,0.0003,2]
[341361652,1730835040422,-151.0,0.0003,7]
[341361654,1730835040438,-182.6,0.0003,2]
[341361657,1730835040454,-182.6,0.0003,2]
[341361660,1730835040469,-274.66,0.0003,2]
[341361662,1730835040485,-182.6,0.0003,2]
[341361665,1730835040499,-274.66,0.0003,2]
[341361667,1730835040515,-182.6,0.0003,2]
[341361670,1730835040529,-274.66,0.0003,2]
[341361672,1730835040544,-182.6,0.0003,2]
[341361675,1730835040563,-274.66,0.0003,2]
[341361677,1730835040579,-182.6,0.0003,2]
[341361680,1730835040593,-274.66,0.0003,2]
[341361683,1730835040607,-274.66,0.0003,2]
[341361685,1730835040620,-274.66,0.0003,2]
[341361688,1730835040635,-274.66,0.0003,2]
[341361690,1730835040651,-274.66,0.0003,2]
[341361692,1730835040665,-274.66,0.0003,2]
[341361695,1730835040679,-274.66,0.0003,2]
[341361698,1730835040694,-274.66,0.0003,2]
[341361700,1730835040708,-274.66,0.0003,2]
[341361703,1730835040724,-274.66,0.0003,2]
[341361705,1730835040739,-274.66,0.0003,2]
[341361708,1730835040753,-274.66,0.0003,2]
[341361711,1730835040768,-274.66,0.0003,2]
[341361713,1730835040782,-274.66,0.0003,2]
[341361716,1730835040796,-274.66,0.0003,2]
[341361718,1730835040811,-151.0,0.0003,7]
[341361720,1730835040825,-274.66,0.0003,2]
[341361723,1730835040839,-2172.4569,0.0003003,2]
[341361741,1730835040995,-1627.46719894,0.00030032,2]
[341361743,1730835041006,-200.0,0.00030032,2]
[341361745,1730835041015,-313.52,0.000301,2]
[341361747,1730835041024,-1992.88,0.000301,2]
[341361749,1730835041033,-151.0,0.000301,7]
[341361751,1730835041042,-151.0,0.000301,7]
[341361753,1730835041051,-151.0,0.000301,7]
[341361755,1730835041064,-151.0,0.000301,7]
[341361757,1730835041074,-171.758764,0.000301,7]
[341361759,1730835041083,-171.758764,0.000301,7]
[341361761,1730835041092,-98965.85719383,0.0003013,2]
[341361763,1730835041101,-151.0,0.0003013,7]
[341361765,1730835041111,-151.0,0.0003013,7]
[341361767,1730835041120,-151.0,0.0003013,7]
[341361769,1730835041129,-151.0,0.0003013,7]
[341361771,1730835041138,-151.0,0.0003013,7]
[341361773,1730835041147,-151.0,0.0003013,7]
[341361775,1730835041156,-171.758764,0.0003013,7]
[341361777,1730835041165,-171.758764,0.0003013,7]
[341361779,1730835041174,-151.0,0.0003013,7]
[341361781,1730835041183,-151.0,0.0003013,7]
[341361783,1730835041192,-253.762905,0.0003013,7]
[341361785,1730835041201,-253.762905,0.0003013,7]
[341361787,1730835041211,-151.0,0.0003013,7]
[341361789,1730835041221,-151.0,0.0003013,7]
[341361791,1730835041230,-151.0,0.0003013,7]
[341361793,1730835041239,-1000.0,0.000302,2]
[341361795,1730835041249,-456.0,0.000302,2]
[341361797,1730835041259,-362.0,0.000302,2]
[341361799,1730835041269,-166.13,0.00030211,2]
[341361801,1730835041279,-360.86,0.0003027,30]
[341361803,1730835041289,-200.0,0.00030333,2]
[341361805,1730835041299,-160.52,0.00030415,2]
[341361807,1730835041311,-154.01,0.00030548,2]
[341361809,1730835041321,-1000.0,0.00031,7]
[341361811,1730835041331,-623.38,0.00031015,2]
[341361813,1730835041341,-300.0,0.000315,2]
[341361815,1730835041351,-43074.30548255,0.0003188,2]
[341361817,1730835041360,-6300.0,0.000319,11]
[341361819,1730835041370,-220.37971472,0.000319,2]
[341361821,1730835041379,-1472.89956519,0.000319,2]
[341361822,1730835041388,-1897.58893426,0.000319,2]
[341361824,1730835041398,-213.65092094,0.000319,2]
[341361826,1730835041407,-179.43599315,0.000319,6]
[341361829,1730835041416,-482.05,0.0003194,2]
[341361830,1730835041425,-4456.24452613,0.00031942,2]
[341361832,1730835041434,-151.0,0.00031942,7]
[341361834,1730835041443,-253.762905,0.00031942,7]
[341361836,1730835041452,-253.762905,0.00031942,7]
[341361838,1730835041461,-151.0,0.00031942,7]
[341361840,1730835041470,-225.440194,0.00031942,7]
[341361841,1730835041479,-151.0,0.00031942,7]
[341361842,1730835041488,-1000.0,0.00032,7]
[341361843,1730835041497,-250407.73763798,0.00032,30]
[341361899,1730835042080,-305.92172516,0.00032,30]
[341361901,1730835042091,-820.53786207,0.00032,30]
[341362409,1730835398212,161.79,0.00012026,2]
[341362410,1730835400534,172.107,9.311e-05,2]
[341362412,1730835878655,610.178,0.0002371,30]
[341362477,1730836232211,-1540.14980589,0.00014732,2]
[341362478,1730836232224,-1178.78294,0.00014732,2]
[341362479,1730836232279,-209.60385411,0.00014732,2]
[341362480,1730836232289,-1694.1979227,0.00014932,2]
[341362481,1730836232299,-453.92,0.00015032,2]